bitfinex/quotes_BTCUSD_20240607
["timestamp","ask_amount","ask_price","bid_price","bid_amount"]
[1717737121271,1.61195801,71247.0,71246.0,5.16268207]
[1717737121506,1.70765391,71247.0,71246.0,5.16268207]
[1717737125513,1.6015868,71247.0,71246.0,5.16268207]
[1717737125731,1.35848363,71247.0,71246.0,5.16268207]
[1717737125954,1.69147275,71247.0,71246.0,5.16268207]
[1717737128565,0.92975369,71247.0,71246.0,5.16268207]
[1717737128779,1.35954681,71247.0,71246.0,5.16268207]
[1717737129208,1.69326603,71247.0,71246.0,5.16268207]
[1717737129891,1.35954681,71247.0,71246.0,5.16268207]
[1717737131339,1.36080949,71247.0,71246.0,5.16268207]
[1717737131832,1.36042076,71247.0,71246.0,5.16268207]
[1717737132658,1.07970776,71247.0,71246.0,5.16268207]
[1717737132929,1.02238554,71247.0,71246.0,5.16268207]
[1717737133165,1.16456231,71247.0,71246.0,5.16268207]
[1717737133375,0.98235615,71247.0,71246.0,5.16268207]
[1717737133601,1.02238921,71247.0,71246.0,5.16268207]
[1717737133831,1.00838921,71247.0,71246.0,5.16268207]
[1717737134058,1.06584748,71247.0,71246.0,5.16268207]
[1717737134323,1.00838921,71247.0,71246.0,5.16268207]
[1717737134543,1.02238921,71247.0,71246.0,5.16268207]
[1717737134999,1.03538921,71247.0,71246.0,5.16268207]
[1717737135695,1.02138921,71247.0,71246.0,5.16268207]
[1717737136134,1.03238921,71247.0,71246.0,5.16268207]
[1717737138104,1.03238921,71247.0,71246.0,5.30779994]
[1717737138321,0.96504045,71247.0,71246.0,5.30779994]
[1717737138521,0.96504045,71247.0,71246.0,5.16268207]
[1717737138522,1.04378346,71247.0,71246.0,5.16268207]
[1717737141527,1.37990983,71247.0,71246.0,5.16268207]
[1717737141731,1.04420861,71247.0,71246.0,5.16268207]
[1717737142355,1.0440521,71247.0,71246.0,5.16268207]
[1717737142781,1.04405227,71247.0,71246.0,5.16268207]
[1717737144043,0.97548015,71247.0,71246.0,5.16268207]
[1717737144245,1.04403642,71247.0,71246.0,5.16268207]
[1717737144888,1.22619835,71247.0,71246.0,5.16268207]
[1717737149225,1.20319835,71247.0,71246.0,5.16268207]
[1717737150532,1.20315439,71247.0,71246.0,5.16268207]
[1717737151219,1.13462748,71247.0,71246.0,5.16268207]
[1717737151423,1.20296209,71247.0,71246.0,5.16268207]
[1717737152701,0.6860438,71247.0,71246.0,5.16268207]
[1717737152876,1.20206151,71247.0,71246.0,5.16268207]
[1717737154223,1.05993249,71247.0,71246.0,5.16268207]
[1717737154700,1.20206569,71247.0,71246.0,5.16268207]
[1717737156405,1.05993249,71247.0,71246.0,5.16268207]
[1717737157348,1.20207089,71247.0,71246.0,5.16268207]
[1717737157555,1.20207089,71247.0,71246.0,5.30779994]
[1717737158600,1.20207089,71247.0,71246.0,5.16268207]
[1717737160064,1.20235208,71247.0,71246.0,5.16268207]
[1717737165059,1.17261476,71247.0,71246.0,5.16268207]
[1717737167019,1.11246613,71247.0,71246.0,5.16268207]
[1717737167229,1.1722967,71247.0,71246.0,5.16268207]
[1717737168086,1.03015592,71247.0,71246.0,5.16268207]
[1717737172105,0.99138464,71247.0,71246.0,5.16268207]
[1717737172307,1.02986684,71247.0,71246.0,5.16268207]
[1717737178363,0.97003627,71247.0,71246.0,5.16268207]
[1717737178562,1.02742787,71247.0,71246.0,5.16268207]
[1717737180312,1.02792804,71247.0,71246.0,5.16268207]
[1717737182791,1.02792804,71247.0,71246.0,5.30779994]
[1717737182972,1.02792804,71247.0,71246.0,5.16268207]
[1717737183425,1.02749739,71247.0,71246.0,5.16268207]
[1717737184281,0.96960562,71247.0,71246.0,5.16268207]
[1717737184715,1.02534785,71247.0,71246.0,5.16268207]
[1717737185786,0.75863712,71247.0,71246.0,5.16268207]
[1717737185992,1.30505683,71247.0,71246.0,5.16268207]
[1717737186890,1.19771484,71247.0,71246.0,5.16268207]
[1717737187101,1.23618681,71247.0,71246.0,5.16268207]
[1717737187314,1.30425006,71247.0,71246.0,5.16268207]
[1717737188383,1.30418125,71247.0,71246.0,5.16268207]
[1717737190823,1.30421414,71247.0,71246.0,5.16268207]
[1717737192963,1.30351573,71247.0,71246.0,5.16268207]
[1717737202437,1.03841397,71247.0,71246.0,5.16268207]
[1717737203097,0.99997792,71247.0,71246.0,5.16268207]
[1717737203293,1.30062261,71247.0,71246.0,5.16268207]
[1717737203702,1.63056752,71247.0,71246.0,5.16268207]
[1717737206569,1.98460452,71247.0,71246.0,5.16268207]
[1717737206790,2.20357461,71247.0,71246.0,5.16268207]
[1717737206974,2.04516762,71247.0,71246.0,5.16268207]
[1717737207241,2.25840012,71247.0,71246.0,5.16268207]
[1717737207459,2.229554,71247.0,71246.0,5.16268207]
[1717737207681,2.45865835,71247.0,71246.0,5.16268207]
[1717737207894,2.35465321,71247.0,71246.0,5.16268207]
[1717737208105,2.34365321,71247.0,71246.0,5.16268207]
[1717737208555,2.35242921,71247.0,71246.0,5.16268207]
[1717737208976,2.14790678,71247.0,71246.0,5.16268207]
[1717737209184,2.27606308,71247.0,71246.0,5.16268207]
[1717737209399,2.29006308,71247.0,71246.0,5.16268207]
[1717737210006,2.30406308,71247.0,71246.0,5.16268207]
[1717737210450,2.29006308,71247.0,71246.0,5.16268207]
[1717737210669,2.30406308,71247.0,71246.0,5.16268207]
[1717737211059,2.29006308,71247.0,71246.0,5.16268207]
[1717737211484,2.36147414,71247.0,71246.0,5.16268207]
[1717737211905,2.34747414,71247.0,71246.0,5.16268207]
[1717737212578,2.35269814,71247.0,71246.0,5.16268207]
[1717737212792,2.37569814,71247.0,71246.0,5.16268207]
[1717737213216,2.38969814,71247.0,71246.0,5.16268207]
[1717737213441,2.37569814,71247.0,71246.0,5.16268207]
[1717737213646,2.15665578,71247.0,71246.0,5.16268207]
[1717737213855,2.35950134,71247.0,71246.0,5.16268207]
[1717737214564,2.17065578,71247.0,71246.0,5.16268207]
[1717737214764,2.37742011,71247.0,71246.0,5.16268207]
[1717737215184,2.39142011,71247.0,71246.0,5.16268207]
[1717737215400,2.11670779,71247.0,71246.0,5.16268207]
[1717737215617,2.27917903,71247.0,71246.0,5.16268207]
[1717737215840,2.34727903,71247.0,71246.0,5.16268207]
[1717737216624,2.34664245,71247.0,71246.0,5.16268207]
[1717737217284,1.7902946,71247.0,71246.0,5.16268207]
[1717737217501,2.13752197,71247.0,71246.0,5.16193223]
[1717737217687,2.34294061,71247.0,71246.0,5.16193223]
[1717737220488,2.27484061,71247.0,71246.0,5.16193223]
[1717737220698,2.34294061,71247.0,71246.0,5.16193223]
[1717737222508,2.81365361,71247.0,71246.0,4.9594197]
[1717737222719,3.42003361,71247.0,71246.0,4.9444197]
[1717737223141,3.57003361,71247.0,71246.0,4.9444197]
[1717737224218,3.57003361,71247.0,71246.0,4.92520803]
[1717737224642,3.50193361,71247.0,71246.0,4.92520803]
[1717737224887,3.57003361,71247.0,71246.0,4.92520803]
[1717737226393,3.57003361,71247.0,71246.0,4.87873803]
[1717737226817,3.56406565,71247.0,71246.0,4.87873803]
[1717737227723,3.56406565,71247.0,71246.0,5.12153803]
[1717737227932,3.56406565,71247.0,71246.0,4.87873803]
[1717737228865,3.56422475,71247.0,71246.0,4.87873803]
[1717737229520,3.56422475,71247.0,71246.0,5.11173803]
[1717737229732,3.56422475,71247.0,71246.0,4.87873803]
[1717737230371,3.46847269,71247.0,71246.0,5.109014]
[1717737230556,3.56421313,71247.0,71246.0,4.865614]
[1717737230803,3.56421313,71247.0,71246.0,5.018714]
[1717737231012,3.56421313,71247.0,71246.0,4.865614]
[1717737231479,3.34399058,71247.0,71246.0,4.865614]
[1717737231694,3.55320731,71247.0,71246.0,5.094714]
[1717737231873,3.55320731,71247.0,71246.0,4.865614]
[1717737232047,3.55320731,71247.0,71246.0,5.098314]
[1717737232263,3.55320731,71247.0,71246.0,4.865614]
[1717737233036,3.55320731,71247.0,71246.0,5.09721227]
[1717737233311,3.55320731,71247.0,71246.0,4.86411227]
[1717737233927,3.55320731,71247.0,71246.0,5.10971227]
[1717737234108,3.55320731,71247.0,71246.0,4.86411227]
[1717737235909,3.55320731,71247.0,71246.0,5.10681227]
[1717737236379,3.55320731,71247.0,71246.0,4.86411227]
[1717737236554,3.9942514,71247.0,71246.0,5.10681227]
[1717737236734,3.9942514,71247.0,71246.0,4.86411227]
[1717737238018,3.9942514,71247.0,71246.0,4.86273341]
[1717737239395,3.9261514,71247.0,71246.0,4.81373341]
[1717737239612,3.9942514,71247.0,71246.0,4.81373341]
[1717737240049,3.4097124,71247.0,71246.0,4.81373341]
[1717737240292,2.60682731,71247.0,71246.0,4.81373341]
[1717737241362,2.53872731,71247.0,71246.0,4.95885128]
[1717737241592,2.23501431,71247.0,71246.0,4.81373341]
[1717737241784,2.25801431,71247.0,71246.0,4.81373341]
[1717737242058,2.25801431,71247.0,71246.0,5.04903341]
[1717737242281,2.25801431,71247.0,71246.0,4.81373341]
[1717737242756,2.25279031,71247.0,71246.0,4.81373341]
[1717737242975,2.11163783,71247.0,71246.0,4.81373341]
[1717737243419,2.11163783,71247.0,71246.0,5.05493341]
[1717737243842,2.11163783,71247.0,71246.0,4.81373341]
[1717737244080,1.72570083,71247.0,71246.0,4.81373341]
[1717737244293,1.23956919,71247.0,71246.0,4.81373341]
[1717737244508,0.8356703,71247.0,71246.0,4.81373341]
[1717737245116,0.8466067,71247.0,71246.0,4.81373341]
[1717737245341,0.8466067,71247.0,71246.0,4.81342941]
[1717737245562,0.76076645,71247.0,71246.0,4.81342941]
[1717737245777,0.74676645,71247.0,71246.0,4.81342941]
[1717737246195,0.74676645,71247.0,71246.0,4.95854728]
[1717737246633,0.86076645,71247.0,71246.0,4.95854728]
[1717737247255,0.87476645,71247.0,71246.0,4.95854728]
[1717737247468,0.86076645,71247.0,71246.0,4.95854728]
[1717737247675,0.87476645,71247.0,71246.0,4.95854728]
[1717737248113,0.86076645,71247.0,71246.0,4.95854728]
[1717737248531,0.87476645,71247.0,71246.0,4.81342941]
[1717737251594,0.87476645,71247.0,71246.0,4.96412941]
[1717737251864,0.87476645,71247.0,71246.0,5.04442941]
[1717737252313,0.87476645,71247.0,71246.0,4.81342941]
[1717737253451,0.86052343,71247.0,71246.0,4.81342941]
[1717737253880,0.83867745,71247.0,71246.0,4.81342941]
[1717737254247,0.94365465,71247.0,71246.0,4.81342941]
[1717737254452,0.83867745,71247.0,71246.0,5.05512941]
[1717737254650,0.94365514,71247.0,71246.0,4.81342941]
[1717737255054,0.83867745,71247.0,71246.0,4.81342941]
[1717737255349,0.94365089,71247.0,71246.0,4.81342941]
[1717737255975,0.86052339,71247.0,71246.0,4.81342941]
[1717737256251,0.96548665,71247.0,71246.0,4.81342941]
[1717737256475,0.96548665,71247.0,71246.0,5.05372941]
[1717737257975,0.94364071,71247.0,71246.0,5.05372941]
[1717737258187,0.96548678,71247.0,71246.0,5.05372941]
[1717737258907,0.94364071,71247.0,71246.0,5.05372941]
[1717737259142,0.96548682,71247.0,71246.0,5.05372941]
[1717737259602,0.83867745,71247.0,71246.0,5.05372941]
[1717737259811,0.86052357,71247.0,71246.0,5.05372941]
[1717737260028,0.96548683,71247.0,71246.0,5.05372941]
[1717737260468,0.86052357,71247.0,71246.0,5.05372941]
[1717737260953,0.86052357,71247.0,71246.0,4.95372941]
[1717737261202,0.86052357,71247.0,71246.0,5.02182941]
[1717737261906,0.92261729,71247.0,71246.0,5.16694728]
[1717737262131,0.92261729,71247.0,71246.0,4.92664728]
[1717737262567,0.92261729,71247.0,71246.0,4.85854728]
[1717737262782,0.94446315,71247.0,71246.0,4.92664728]
[1717737263283,0.94398511,71247.0,71246.0,4.92664728]
[1717737263469,0.59802542,71247.0,71246.0,4.92664728]
[1717737264237,0.59802542,71247.0,71246.0,4.78152941]
[1717737265379,0.56012535,71247.0,71246.0,4.78152941]
[1717737267407,0.59793046,71247.0,71246.0,4.78152941]
[1717737268337,0.08393984,71252.0,71246.0,4.78152941]
[1717737268338,0.1537,71289.0,71270.0,0.094776]
[1717737268552,0.10485,71276.0,71273.0,0.0944733]
[1717737268790,0.18644926,71288.0,71264.0,0.1]
[1717737268791,0.10485,71279.0,71264.0,0.1]
[1717737269001,0.10485,71279.0,71256.0,0.02]
[1717737269002,0.4,71278.0,71270.0,0.0944733]
[1717737269226,0.1524,71277.0,71270.0,0.0944733]
[1717737269534,0.0781,71276.0,71274.0,0.0681]
[1717737269744,0.0781,71276.0,71270.0,0.0944733]
[1717737269987,0.0781,71276.0,71275.0,0.0681]
[1717737270885,0.22251893,71276.0,71270.0,0.0944733]
[1717737271121,0.14441893,71271.0,71270.0,0.0944733]
[1717737271351,0.14441893,71271.0,71270.0,0.1625733]
[1717737273728,0.14441893,71271.0,71270.0,0.0944733]
[1717737273939,0.14441893,71271.0,71270.0,0.1625733]
[1717737274160,0.14441893,71271.0,71270.0,0.1825733]
[1717737274872,0.14441893,71271.0,71270.0,0.1625733]
[1717737275525,0.14441893,71271.0,71270.0,0.1635733]
[1717737277357,0.14441893,71271.0,71270.0,0.00083041]
[1717737277573,0.24441893,71271.0,71270.0,0.00083041]
[1717737278027,0.32631893,71271.0,71270.0,0.00083041]
[1717737278695,0.4,71267.0,71263.0,0.0944733]
[1717737278910,0.14441893,71264.0,71263.0,0.0944733]
[1717737279124,0.14441893,71264.0,71263.0,0.1625733]
[1717737279787,0.14441893,71264.0,71263.0,0.0681]
[1717737280024,0.14441893,71264.0,71263.0,0.1625733]
[1717737281159,0.15041893,71264.0,71263.0,0.1635733]
[1717737281803,0.38481893,71264.0,71263.0,0.1625733]
[1717737282749,0.14441893,71264.0,71263.0,0.3210733]
[1717737282973,0.14441893,71264.0,71263.0,0.1625733]
[1717737283196,0.37701893,71264.0,71263.0,0.1625733]
[1717737283409,0.38401893,71264.0,71263.0,0.1635733]
[1717737283843,0.37701893,71264.0,71263.0,0.1625733]
[1717737284059,0.15041893,71264.0,71263.0,0.1635733]
[1717737287190,0.15041893,71264.0,71263.0,0.001]
[1717737287191,0.29074193,71264.0,71263.0,0.001]
[1717737287402,0.39074193,71264.0,71263.0,0.001]
[1717737288276,0.63084193,71264.0,71263.0,0.001]
[1717737288484,0.64912363,71264.0,71263.0,0.001]
[1717737288992,0.63084193,71264.0,71263.0,0.001]
[1717737290484,0.64914993,71264.0,71263.0,0.001]
[1717737290912,0.63084193,71264.0,71263.0,0.001]
[1717737291561,0.64914372,71264.0,71263.0,0.001]
[1717737292179,0.63084193,71264.0,71263.0,0.001]
[1717737292396,0.40902349,71264.0,71263.0,0.001]
[1717737293272,0.40902349,71264.0,71263.0,0.001946]
[1717737293493,0.39074193,71264.0,71263.0,0.001946]
[1717737293736,0.4090472,71264.0,71263.0,0.001946]
[1717737294165,0.5643472,71264.0,71263.0,0.001946]
[1717737295098,0.4090472,71264.0,71263.0,0.001946]
[1717737295775,0.4851472,71264.0,71263.0,0.001946]
[1717737296392,0.4090472,71264.0,71263.0,0.001946]
[1717737299867,0.73160185,71264.0,71263.0,0.001946]
[1717737300067,1.09973849,71264.0,71263.0,0.001946]
[1717737300268,1.31793671,71264.0,71263.0,0.001946]
[1717737300476,1.47743671,71264.0,71263.0,0.001946]
[1717737300665,1.25181366,71264.0,71263.0,0.001946]
[1717737300930,1.28164082,71264.0,71263.0,0.001946]
[1717737301080,1.55571366,71264.0,71263.0,0.001946]
[1717737301514,1.55861366,71264.0,71263.0,0.002946]
[1717737301970,1.31391366,71264.0,71263.0,0.000946]
[1717737302321,1.28764082,71264.0,71263.0,0.001946]
[1717737302531,1.44584082,71264.0,71263.0,0.001946]
[1717737302737,1.27564082,71264.0,71263.0,0.001946]
[1717737303168,1.28964082,71264.0,71263.0,0.002946]
[1717737304442,1.53094082,71264.0,71263.0,0.002946]
[1717737305038,1.5693818,71264.0,71263.0,0.002946]
[1717737305254,1.53094082,71264.0,71263.0,0.002946]
[1717737305475,1.56937501,71264.0,71263.0,0.002946]
[1717737306968,1.55439288,71264.0,71263.0,0.002946]
[1717737307622,1.47319288,71264.0,71263.0,0.002946]
[1717737308127,1.47319288,71264.0,71263.0,0.001946]
[1717737308551,1.32807501,71264.0,71263.0,0.001946]
[1717737308971,1.46857501,71264.0,71263.0,0.001946]
[1717737309451,1.47857501,71264.0,71263.0,0.000946]
[1717737309670,1.48257501,71264.0,71263.0,0.001946]
[1717737309899,1.59430096,71264.0,71263.0,0.001946]
[1717737310110,1.60830096,71264.0,71263.0,0.001946]
[1717737310731,1.75341883,71264.0,71263.0,0.001946]
[1717737310990,1.60830096,71264.0,71263.0,0.001946]
[1717737311622,1.61695792,71264.0,71263.0,0.001946]
[1717737312512,1.69545792,71264.0,71263.0,0.001946]
[1717737312931,1.54495792,71264.0,71263.0,0.001946]
[1717737313386,1.66069244,71264.0,71263.0,0.001946]
[1717737314241,1.66037939,71264.0,71263.0,0.001946]
[1717737314484,1.65637939,71264.0,71263.0,0.000946]
[1717737314690,1.57882193,71264.0,71263.0,0.000946]
[1717737314896,1.59282193,71264.0,71263.0,0.001946]
[1717737315101,1.64531946,71264.0,71263.0,0.000946]
[1717737315320,1.71974102,71264.0,71263.0,0.000946]
[1717737315546,1.85960582,71264.0,71263.0,0.001946]
[1717737315983,1.84560582,71264.0,71263.0,0.001946]
[1717737316236,1.85960582,71264.0,71263.0,0.001946]
[1717737316405,1.58862315,71264.0,71263.0,0.001946]
[1717737316616,1.56998969,71264.0,71263.0,0.001946]
[1717737316833,1.57395595,71264.0,71263.0,0.001946]
[1717737317077,1.7138296,71264.0,71263.0,0.001946]
[1717737317315,1.7138296,71264.0,71263.0,0.00155185]
[1717737317899,1.58795595,71264.0,71263.0,0.00155185]
[1717737318426,0.014,71264.0,71263.0,0.00155185]
[1717737319526,0.40593035,71264.0,71263.0,0.15655185]
[1717737319712,0.00593035,71264.0,71263.0,0.17885185]
[1717737319964,0.04195812,71277.0,71266.0,0.1]
[1717737320182,0.4,71282.0,71274.0,0.0681]
[1717737320183,0.04195812,71280.0,71274.0,0.0681]
[1717737320398,0.46293718,71282.0,71274.0,0.0681]
[1717737320399,0.4,71282.0,71274.0,0.0681]
[1717737320608,0.00638917,71281.0,71274.0,0.0681]
[1717737321283,0.4,71282.0,71281.0,0.1]
[1717737321735,0.405,71282.0,71281.0,0.1]
[1717737322195,0.006,71289.0,71282.0,0.2367]
[1717737322423,0.006,71289.0,71283.0,0.1]
[1717737322651,0.006,71289.0,71288.0,0.0681]
[1717737322883,0.006,71289.0,71288.0,0.1681]
[1717737323738,0.006,71289.0,71288.0,0.1]
[1717737324160,0.006,71289.0,71288.0,0.102]
[1717737325542,0.006,71289.0,71288.0,0.106]
[1717737327508,0.15041893,71289.0,71288.0,0.006]
[1717737327721,0.29069293,71289.0,71288.0,0.006]
[1717737328171,0.15041893,71289.0,71288.0,0.49605]
[1717737328885,0.15041893,71289.0,71288.0,0.64156332]
[1717737329099,0.15041893,71289.0,71288.0,0.63956332]
[1717737329316,0.15141893,71289.0,71288.0,0.73556332]
[1717737329525,0.15141893,71289.0,71288.0,0.73656332]
[1717737329750,0.15141893,71289.0,71288.0,0.73656172]
[1717737329948,0.15041893,71289.0,71288.0,0.73656172]
[1717737330173,0.15041893,71289.0,71288.0,0.83656172]
[1717737330174,0.15441893,71289.0,71288.0,0.83656172]
[1717737330396,0.00863,71291.0,71290.0,0.41995]
[1717737331053,0.00863,71291.0,71290.0,0.56545853]
[1717737331675,0.00863,71291.0,71290.0,0.79895853]
[1717737332098,0.00963,71291.0,71290.0,0.81295853]
[1717737332307,0.00963,71291.0,71290.0,0.66745]
[1717737332771,0.01063,71291.0,71290.0,0.82695963]
[1717737333398,0.01063,71291.0,71290.0,0.83695963]
[1717737335615,0.01063,71291.0,71290.0,0.97723163]
[1717737337068,0.01063,71291.0,71290.0,0.96723163]
[1717737337271,0.01063,71291.0,71290.0,0.97723163]
[1717737337637,0.01063,71291.0,71290.0,1.14733163]
[1717737339840,0.01063,71291.0,71290.0,0.95136698]
[1717737340168,0.01063,71291.0,71290.0,0.94136698]
[1717737340899,0.01063,71291.0,71290.0,0.95136698]
[1717737341525,0.01063,71291.0,71290.0,0.95136006]
[1717737343964,0.01063,71291.0,71290.0,0.84926006]
[1717737344165,0.01063,71291.0,71290.0,0.87026721]
[1717737345068,0.01063,71291.0,71290.0,0.84926006]
[1717737346192,0.01063,71291.0,71290.0,0.71527471]
[1717737346431,0.01063,71291.0,71290.0,0.94926006]
[1717737346630,0.01063,71291.0,71290.0,1.04926006]
[1717737350340,0.01063,71291.0,71290.0,1.14926006]
[1717737353100,0.00063,71291.0,71290.0,1.14926006]
[1717737353556,0.00063,71291.0,71290.0,1.1492429]
[1717737354959,0.00063,71291.0,71290.0,1.0812429]
[1717737355181,0.00063,71291.0,71290.0,1.1492429]
[1717737355471,0.00063,71291.0,71290.0,1.1392429]
[1717737355681,0.00063,71291.0,71290.0,1.1492429]
[1717737356131,0.00063,71291.0,71290.0,1.1392429]
[1717737356350,0.00063,71291.0,71290.0,0.17348555]
[1717737356351,0.14504893,71291.0,71290.0,0.17348555]
[1717737356573,0.14590893,71291.0,71290.0,0.17348555]
[1717737357683,0.14590893,71291.0,71290.0,0.15948555]
[1717737358138,0.14527893,71291.0,71290.0,0.15948555]
[1717737358358,0.14527893,71291.0,71290.0,0.21348555]
[1717737358577,0.14527893,71291.0,71290.0,0.14548555]
[1717737358802,0.14627893,71291.0,71290.0,0.23948555]
[1717737359912,0.14527893,71291.0,71290.0,0.15748555]
[1717737360155,0.14627893,71291.0,71290.0,0.16748555]
[1717737361256,0.14627893,71291.0,71290.0,0.022]
[1717737361399,0.14627893,71291.0,71290.0,0.16753067]
[1717737368493,0.31012304,71291.0,71290.0,0.16753067]
[1717737368712,0.31012304,71291.0,71290.0,10.06753067]
[1717737369637,0.14592304,71291.0,71290.0,10.06753067]
[1717737371897,0.00186,71291.0,71290.0,10.07753067]
[1717737372580,0.00186,71291.0,71290.0,10.07752017]
[1717737372769,0.14627893,71291.0,71290.0,10.06752017]
[1717737372898,0.31047893,71291.0,71290.0,10.06752017]
[1717737373104,0.46074893,71291.0,71290.0,10.06752017]
[1717737373323,0.53744893,71291.0,71290.0,9.922]
[1717737373528,0.69623332,71291.0,71290.0,9.922]
[1717737373738,0.69703332,71291.0,71290.0,9.922]
[1717737373945,0.73870137,71291.0,71290.0,9.922]
[1717737374189,0.73901954,71291.0,71290.0,9.922]
[1717737374412,0.65300489,71291.0,71290.0,9.922]
[1717737374858,0.65200489,71291.0,71290.0,9.912]
[1717737375205,0.61001867,71291.0,71290.0,9.914]
[1717737375950,0.61001867,71291.0,71290.0,9.9]
[1717737376180,0.61601867,71291.0,71290.0,9.903]
[1717737376382,0.60601867,71291.0,71290.0,9.903]
[1717737376557,0.35831867,71291.0,71290.0,10.01]
[1717737376949,0.35831867,71291.0,71290.0,10.0]
[1717737377213,0.36331867,71291.0,71290.0,10.0]
[1717737377392,0.22304867,71291.0,71290.0,10.01]
[1717737377832,0.21804867,71291.0,71290.0,10.0]
[1717737378061,0.22404867,71291.0,71290.0,10.12398535]
[1717737378281,0.22404867,71291.0,71290.0,10.12798535]
[1717737378282,0.22404297,71291.0,71290.0,10.12798535]
[1717737378524,0.14527893,71291.0,71290.0,10.12798535]
[1717737378953,0.14527893,71291.0,71290.0,10.13098535]
[1717737379390,0.14527893,71291.0,71290.0,10.12698535]
[1717737379844,0.14527893,71291.0,71290.0,10.12798535]
[1717737380055,0.14527893,71291.0,71290.0,10.12398535]
[1717737380491,0.14527893,71291.0,71290.0,10.12798535]
[1717737380699,0.14527893,71291.0,71290.0,10.12398535]
[1717737380967,0.00086,71291.0,71290.0,10.22398535]
[1717737381219,0.00086,71291.0,71290.0,10.22998535]
[1717737381441,0.00086,71291.0,71290.0,10.23398535]
[1717737381868,0.00086,71291.0,71290.0,10.22998535]
[1717737382541,0.00086,71291.0,71290.0,10.22398535]
[1717737382854,0.00086,71291.0,71290.0,10.22898535]
[1717737383509,0.00086,71291.0,71290.0,10.13598535]
[1717737383950,0.00086,71291.0,71290.0,10.30608535]
[1717737384159,0.00086,71291.0,71290.0,10.40608535]
[1717737384592,0.14527893,71291.0,71290.0,10.1821]
[1717737384845,0.14527893,71291.0,71290.0,10.30608535]
[1717737387661,0.14527893,71291.0,71290.0,10.1921]
[1717737387867,0.14527893,71291.0,71290.0,10.193046]
[1717737388063,0.14527893,71291.0,71290.0,10.30703135]
[1717737391767,0.14527893,71291.0,71290.0,10.083046]
[1717737391982,0.14527893,71291.0,71290.0,10.30703135]
[1717737393562,0.14527893,71291.0,71290.0,10.193046]
[1717737393994,0.14527893,71291.0,71290.0,10.20493135]
[1717737395667,0.14527893,71291.0,71290.0,9.980946]
[1717737395884,0.14527893,71291.0,71290.0,10.090946]
[1717737396363,0.21804092,71291.0,71290.0,10.090946]
[1717737396803,0.21804092,71291.0,71290.0,10.20493135]
[1717737400487,0.21804092,71291.0,71290.0,9.980946]
[1717737400728,0.14527893,71291.0,71290.0,10.20493135]
[1717737400930,0.21804075,71291.0,71290.0,10.20493135]
[1717737401804,0.21804075,71291.0,71290.0,10.090946]
[1717737402227,0.21804075,71291.0,71290.0,10.20493135]
[1717737403935,0.21804075,71291.0,71290.0,10.022946]
[1717737404171,0.21804075,71291.0,71290.0,10.20493135]
[1717737404386,0.21804075,71291.0,71290.0,10.012946]
[1717737404617,0.22804075,71291.0,71290.0,9.912946]
[1717737405123,0.27005233,71291.0,71290.0,9.912946]
[1717737405329,0.36051402,71291.0,71290.0,9.91213248]
[1717737406377,0.50078402,71291.0,71290.0,9.91213248]
[1717737407697,0.49078402,71291.0,71290.0,9.91213248]
[1717737408497,0.41032233,71291.0,71290.0,9.91213248]
[1717737408890,0.50104604,71291.0,71290.0,9.91213248]
[1717737409345,0.41032233,71291.0,71290.0,9.91213248]
[1717737410619,0.40032233,71291.0,71290.0,9.91213248]
[1717737411027,0.41032233,71291.0,71290.0,9.91213248]
[1717737411734,0.36831075,71291.0,71290.0,9.91213248]
[1717737412600,0.35831075,71291.0,71290.0,9.91213248]
[1717737412819,0.40032233,71291.0,71290.0,9.91213248]
[1717737413230,0.35831841,71291.0,71290.0,9.91213248]
[1717737417370,0.44547371,71291.0,71290.0,9.91213248]
[1717737417577,0.54148836,71291.0,71290.0,9.91213248]
[1717737417777,0.62757416,71291.0,71290.0,9.91213248]
[1717737417992,0.62558267,71291.0,71290.0,9.91213248]
[1717737418822,0.62558267,71291.0,71290.0,9.90513248]
[1717737419247,0.62858267,71291.0,71290.0,9.90013248]
[1717737419644,0.62858267,71291.0,71290.0,9.90313248]
[1717737419842,0.54455951,71291.0,71290.0,9.90313248]
[1717737420082,0.53455951,71291.0,71290.0,9.90013248]
[1717737420291,0.61858267,71291.0,71290.0,9.90013248]
[1717737420511,0.62358267,71291.0,71290.0,9.90013248]
[1717737420736,0.37621864,71291.0,71290.0,10.19211783]
[1717737420955,0.22904841,71291.0,71290.0,10.07813248]
[1717737421134,0.22904841,71291.0,71290.0,10.19211783]
[1717737422508,0.22304841,71291.0,71290.0,10.12411783]
[1717737422721,0.22604841,71291.0,71290.0,10.19211783]
[1717737422994,0.22104841,71291.0,71290.0,10.19211783]
[1717737423201,0.22604841,71291.0,71290.0,10.19211783]
[1717737423812,0.08162948,71291.0,71290.0,10.19211783]
[1717737424025,0.00886,71291.0,71290.0,10.19211783]
[1717737424240,0.00386,71291.0,71290.0,10.19211783]
[1717737424646,0.00086,71291.0,71290.0,10.19711783]
[1717737425065,0.00186,71291.0,71290.0,10.55438983]
[1717737425479,0.00086,71291.0,71290.0,10.54738983]
[1717737425961,0.00186,71291.0,71290.0,10.55438983]
[1717737426168,0.00086,71291.0,71290.0,10.64238983]
[1717737426382,0.00086,71291.0,71290.0,10.64738983]
[1717737426594,0.00186,71291.0,71290.0,10.66138983]
[1717737427035,0.00186,71291.0,71290.0,10.65638983]
[1717737427271,0.00186,71291.0,71290.0,10.66838983]
[1717737427699,0.00086,71291.0,71290.0,10.65438983]
[1717737427902,0.00086,71291.0,71290.0,10.58638983]
[1717737428126,0.00386,71291.0,71290.0,10.65438983]
[1717737428383,0.00386,71291.0,71290.0,10.64238983]
[1717737429060,0.00386,71291.0,71290.0,10.57438983]
[1717737429282,0.00386,71291.0,71290.0,10.64238983]
[1717737429883,0.00486,71291.0,71290.0,10.64238983]
[1717737434842,0.4,71311.0,71290.0,10.64238983]
[1717737434843,0.01862,71313.0,71302.0,0.11]
[1717737435043,0.4,71307.0,71302.0,0.1]
[1717737435281,0.14441893,71306.0,71302.0,0.11]
[1717737435490,0.0823,71305.0,71302.0,0.11]
[1717737435711,0.14441893,71304.0,71302.0,0.1]
[1717737435939,0.14441893,71304.0,71303.0,0.068]
[1717737436604,0.14441893,71304.0,71302.0,0.1]
[1717737436833,0.14441893,71304.0,71303.0,0.068]
[1717737438104,0.14441893,71304.0,71302.0,0.105]
[1717737438363,0.14441893,71304.0,71303.0,0.068]
[1717737438819,0.14441893,71304.0,71303.0,0.073]
[1717737439063,0.14441893,71304.0,71303.0,0.08]
[1717737439714,0.14441893,71304.0,71303.0,0.012]
[1717737439945,0.38631893,71304.0,71303.0,0.08]
[1717737440388,0.38631893,71304.0,71303.0,0.012]